bitfinex/quotes_ETHUSD_20251224
["timestamp","ask_amount","ask_price","bid_price","bid_amount"]
[1766588018052,0.941,2916.4,2915.0,0.03430531]
[1766588018246,0.941,2916.4,2915.5,0.002]
[1766588018448,0.941,2916.2,2914.8,0.002]
[1766588019741,0.941,2916.0,2914.8,0.002]
[1766588021667,0.941,2916.0,2914.9,0.808]
[1766588021822,0.941,2916.0,2915.0,0.03430531]
[1766588022219,0.941,2916.0,2915.1,0.808]
[1766588022445,0.941,2916.0,2915.2,0.80463969]
[1766588023255,0.941,2916.0,2915.2,0.77033673]
[1766588023460,0.941,2916.0,2915.0,0.84230531]
[1766588023757,0.941,2916.0,2915.1,0.03430414]
[1766588024465,0.9332,2916.3,2914.8,0.002]
[1766588024625,0.9332,2915.8,2914.8,0.002]
[1766588024824,0.9332,2916.2,2914.8,0.002]
[1766588025038,0.9332,2916.0,2914.8,0.002]
[1766588025728,0.9332,2915.8,2914.8,0.002]
[1766588025925,3.42986983,2915.6,2914.8,0.002]
[1766588026129,0.96750414,2915.5,2914.8,0.002]
[1766588026755,0.96750414,2915.5,2914.3,0.002]
[1766588026959,0.9332,2915.3,2914.3,0.002]
[1766588027159,0.9332,2915.1,2914.3,0.002]
[1766588027349,0.9332,2914.9,2914.3,0.002]
[1766588027551,0.9332,2914.7,2913.6,0.002]
[1766588027859,0.9332,2914.5,2913.6,0.002]
[1766588028033,0.04289047,2914.4,2913.8,3.43189139]
[1766588028233,0.9332,2914.5,2913.9,0.34510658]
[1766588028468,0.9332,2915.2,2913.9,0.36227513]
[1766588029326,0.9332,2915.0,2913.9,0.36227513]
[1766588029544,0.9332,2914.8,2913.9,0.36227513]
[1766588029740,0.97608606,2914.7,2913.9,0.34510658]
[1766588030171,0.97608606,2914.7,2914.0,0.01716325]
[1766588030475,0.97608606,2914.7,2914.0,0.01716207]
[1766588031270,0.809,2915.4,2914.0,0.42559813]
[1766588031271,0.9332,2915.1,2914.0,0.42559813]
[1766588031431,0.9332,2915.1,2914.1,0.03431591]
[1766588032134,0.9332,2915.6,2914.2,6.86294694]
[1766588032341,0.809,2915.7,2914.3,0.03431355]
[1766588032342,0.9332,2915.5,2914.3,0.03431355]
[1766588032567,0.9332,2915.5,2914.4,0.68972605]
[1766588032864,0.9332,2915.3,2914.4,0.68972605]
[1766588033068,0.9332,2915.1,2914.5,0.0343112]
[1766588033373,0.9332,2915.1,2914.3,0.808]
[1766588033374,0.02573634,2915.0,2914.3,0.808]
[1766588033565,0.02573634,2915.0,2914.4,0.03431237]
[1766588034542,0.02573634,2915.0,2914.4,3.46548678]
[1766588034757,0.9332,2915.1,2914.4,6.89672477]
[1766588034960,0.9332,2915.6,2914.5,0.80478368]
[1766588035158,0.9342,2915.6,2914.5,0.80478368]
[1766588035967,0.9342,2915.6,2914.5,0.0343112]
[1766588036170,0.9342,2915.6,2914.1,0.002]
[1766588036375,0.9332,2915.4,2914.1,0.002]
[1766588036868,0.9332,2915.4,2914.1,0.03631591]
[1766588037073,0.9332,2915.4,2914.1,0.84431591]
[1766588037863,0.9332,2915.4,2914.1,0.80711285]
[1766588038046,0.9332,2915.4,2914.1,0.03631591]
[1766588038250,0.9332,2915.3,2914.1,0.03631591]
[1766588038443,0.9332,2915.1,2914.1,0.002]
[1766588039080,0.9332,2914.8,2913.1,0.002]
[1766588039378,0.9332,2914.6,2913.1,0.002]
[1766588039578,0.9332,2914.6,2913.1,0.34913135]
[1766588039798,0.9332,2914.6,2913.1,0.002]
[1766588040364,0.809,2914.7,2913.1,0.002]
[1766588040365,0.9332,2914.4,2913.1,0.002]
[1766588041074,0.9332,2914.4,2913.1,0.03632769]
[1766588041966,0.9332,2914.4,2913.1,0.84432769]
[1766588042370,3.43125206,2914.4,2913.1,0.84432769]
[1766588042602,0.9728,2914.2,2913.1,0.03632769]
[1766588042805,0.9728,2914.2,2913.1,0.002]
[1766588043012,0.9728,2914.2,2913.1,0.03632769]
[1766588043805,0.9728,2914.2,2913.1,3.46904335]
[1766588044184,0.9728,2914.2,2913.1,0.03632769]
[1766588044489,0.9728,2914.0,2913.1,0.002]
[1766588045000,0.9728,2914.0,2912.4,0.002]
[1766588045404,0.9728,2913.9,2912.4,0.002]
[1766588045702,0.9728,2913.9,2912.4,0.809]
[1766588045920,0.9728,2913.9,2912.5,0.03433476]
[1766588046204,0.9728,2913.7,2912.4,0.002]
[1766588046401,0.9728,2913.7,2911.9,0.002]
[1766588046569,0.9728,2913.5,2911.9,0.002]
[1766588046768,0.9728,2913.3,2911.9,0.002]
[1766588046967,0.9728,2913.3,2911.9,0.03634183]
[1766588047797,0.9728,2913.3,2912.0,0.807]
[1766588047993,0.9728,2913.3,2912.1,0.84133948]
[1766588048200,0.9728,2914.0,2912.3,5.91979263]
[1766588048424,0.9728,2914.0,2912.5,6.86695278]
[1766588048611,0.9728,2914.0,2912.6,0.84133358]
[1766588048823,0.9728,2913.9,2912.4,4.02896948]
[1766588049014,0.9728,2913.9,2912.5,0.03433476]
[1766588049516,0.9728,2913.9,2912.4,10.30074563]
[1766588049718,0.9728,2913.9,2912.5,1.14520932]
[1766588050317,0.9728,2913.9,2912.6,0.807]
[1766588050509,0.9728,2913.9,2912.6,4.24026063]
[1766588050715,0.9728,2913.9,2912.7,0.0343324]
[1766588050915,0.9728,2913.9,2912.8,0.807]
[1766588051235,0.9728,2913.8,2912.4,0.807]
[1766588051436,0.9728,2913.6,2912.1,3.43389395]
[1766588051733,0.9728,2913.6,2911.9,4.24310378]
[1766588052041,0.9728,2913.4,2912.2,3.4337723]
[1766588052233,0.9728,2913.4,2912.0,3.89269113]
[1766588052234,0.9728,2913.4,2912.3,0.03433712]
[1766588052441,0.9728,2913.4,2912.3,3.4336026]
[1766588052735,0.9728,2913.4,2912.6,0.002]
[1766588052909,0.9728,2913.6,2912.2,0.808]
[1766588053107,0.9728,2913.4,2912.3,0.03433712]
[1766588053332,0.9728,2913.4,2912.2,0.0343383]
[1766588053733,0.9728,2913.4,2911.5,0.002]
[1766588053928,0.9728,2912.9,2911.5,0.002]
[1766588054240,0.9728,2912.7,2911.5,0.002]
[1766588054437,0.9728,2912.5,2911.5,0.002]
[1766588054644,3.43359428,2912.4,2911.5,0.002]
[1766588054809,0.9728,2912.3,2911.3,0.002]
[1766588055010,0.9728,2912.2,2911.3,0.002]
[1766588055213,0.9728,2912.2,2911.3,0.03634891]
[1766588055415,0.9728,2912.2,2911.3,0.002]
[1766588055608,0.9728,2913.0,2911.3,0.03634891]
[1766588055848,0.9728,2913.0,2911.3,0.002]
[1766588056138,0.9728,2913.0,2911.4,1.03070145]
[1766588056740,0.9728,2913.0,2911.6,6.86907542]
[1766588056951,0.9728,2913.0,2911.7,0.03434419]
[1766588058649,0.9728,2913.0,2911.8,0.808]
[1766588058854,0.9728,2913.0,2911.9,6.86836772]
[1766588059024,0.9728,2913.0,2912.0,1.14883697]
[1766588059226,0.9728,2913.0,2912.1,0.808]
[1766588059548,0.9728,2913.0,2912.2,0.0343383]
[1766588059746,0.9728,2914.0,2912.2,0.0343383]
[1766588060047,0.9728,2914.0,2912.3,0.67621309]
[1766588060213,0.9728,2914.0,2912.4,0.03433594]
[1766588060410,0.001,2913.3,2912.4,0.03433594]
[1766588060616,0.9728,2913.5,2912.4,0.03433594]
[1766588060617,0.9668,2913.5,2912.4,0.03433594]
[1766588060917,0.9668,2913.5,2912.5,0.03433476]
[1766588061144,0.9728,2914.4,2912.6,0.69014631]
[1766588061444,0.9728,2914.3,2912.7,0.0343324]
[1766588061664,0.9728,2914.3,2912.8,0.808]
[1766588061948,0.9728,2914.3,2912.6,0.69014631]
[1766588061949,0.9728,2914.3,2912.9,0.84233004]
[1766588062644,0.9728,2914.2,2912.9,0.808]
[1766588062853,0.9728,2914.0,2912.9,0.808]
[1766588063151,0.9728,2914.0,2912.7,0.8423324]
[1766588063317,0.9728,2914.0,2912.8,3.43312247]
[1766588063661,0.9728,2914.0,2912.9,0.03433004]
[1766588064013,0.9728,2914.0,2913.0,0.42753885]
[1766588064240,0.9728,2914.0,2912.9,0.03433004]
[1766588064428,0.9728,2914.0,2912.8,0.808]
[1766588064770,0.9728,2914.0,2912.9,0.03433004]
[1766588065255,0.9728,2913.9,2912.9,0.03433004]
[1766588066255,0.9728,2913.9,2912.9,3.46731066]
[1766588066562,0.9728,2913.9,2913.0,0.7708409]
[1766588066762,0.9728,2913.9,2913.1,0.03432769]
[1766588067375,0.001,2914.5,2913.1,0.03432769]
[1766588067572,0.9728,2914.8,2913.8,5.91979263]
[1766588067866,0.001,2915.6,2913.9,1.43429752]
[1766588067867,0.9728,2915.3,2913.9,1.43429752]
[1766588068241,0.9728,2915.3,2913.9,0.84231826]
[1766588068929,0.001,2915.1,2913.9,4.27407855]
[1766588069261,0.9738,2915.1,2913.9,4.27407855]
[1766588069445,0.9738,2915.1,2913.9,7.70590531]
[1766588069647,0.9738,2915.1,2913.9,13.59137968]
[1766588069968,0.9728,2915.4,2914.0,1.35913797]
[1766588070139,0.9728,2915.4,2914.1,0.03431591]
[1766588071047,4.40288462,2915.4,2914.1,3.46584369]
[1766588071245,0.9989,2915.3,2914.1,3.46584369]
[1766588071573,0.9989,2915.3,2914.2,0.48249817]
[1766588071757,0.9989,2915.3,2914.3,0.03431355]
[1766588071932,0.9989,2915.3,2914.4,0.808]
[1766588072137,0.9989,2915.3,2914.5,0.0343112]
[1766588072548,0.9989,2915.3,2914.4,0.808]
[1766588073271,0.9989,2915.3,2914.2,0.48249817]
[1766588073438,0.9989,2915.2,2914.3,0.84231355]
[1766588074275,0.9999,2915.6,2914.3,0.84231355]
[1766588074445,0.001,2915.6,2914.5,5.91979263]
[1766588074777,0.001,2915.7,2914.6,0.03431002]
[1766588074948,0.9989,2916.1,2914.6,0.03431002]
[1766588075269,0.9989,2916.1,2914.8,6.86153422]
[1766588075566,0.9989,2916.1,2914.9,0.808]
[1766588075772,0.9989,2916.1,2914.9,0.84230649]
[1766588076157,0.9989,2916.1,2915.0,5.91979263]
[1766588076349,0.9999,2916.5,2915.1,0.03430414]
[1766588076537,0.9999,2916.5,2915.2,0.59540968]
[1766588076733,0.9999,2916.5,2915.3,0.03430178]
[1766588076939,0.9999,2916.5,2915.2,0.59540968]
[1766588076940,0.9999,2916.3,2915.4,0.808]
[1766588077440,0.9999,2916.3,2915.2,0.59540968]
[1766588077665,0.9999,2916.3,2915.3,0.84230178]
[1766588077869,0.9999,2916.3,2915.3,1.32910759]
[1766588078542,0.9999,2916.3,2915.3,0.84230178]
[1766588078943,0.9999,2916.3,2915.4,4.27232919]
[1766588079243,0.001,2916.3,2915.5,0.808]
[1766588079466,0.001,2916.4,2915.6,0.03429825]
[1766588079669,0.9989,2916.7,2915.7,0.808]
[1766588079841,0.9989,2916.7,2915.8,0.0342959]
[1766588080749,0.9989,2916.7,2915.7,0.808]
[1766588080750,0.9989,2916.6,2914.8,6.21856815]
[1766588081065,0.9989,2916.6,2914.9,0.84230649]
[1766588081266,0.9989,2916.6,2914.9,0.03430649]
[1766588081476,0.9989,2916.6,2915.1,3.43041405]
[1766588081649,0.9989,2916.6,2915.3,5.91979263]
[1766588081849,0.9989,2916.6,2915.4,0.62971017]
[1766588082044,0.9989,2916.6,2915.5,0.808]
[1766588082300,0.001,2916.8,2915.6,0.03429825]
[1766588082451,0.9999,2917.4,2915.8,5.91979263]
[1766588082654,0.9999,2917.4,2915.9,0.03429472]
[1766588082986,0.9999,2917.4,2916.0,1.40340874]
[1766588083141,0.9999,2917.4,2916.1,0.03429237]
[1766588083560,0.001,2917.6,2916.4,6.85776984]
[1766588083761,0.001,2917.6,2916.5,0.84228767]
[1766588083964,0.9989,2917.5,2916.6,0.808]
[1766588084362,0.9989,2917.5,2916.7,0.03428532]
[1766588084564,0.9989,2917.5,2916.6,0.808]
[1766588084803,0.9989,2917.5,2916.7,0.03428532]
[1766588084979,0.001,2917.6,2916.7,0.03428532]
[1766588085295,0.001,2917.6,2916.3,3.42895017]
[1766588085296,0.001,2916.6,2916.3,3.42895017]
[1766588085453,0.952,2917.6,2916.4,1.4938048]
[1766588085656,0.951,2917.5,2916.4,1.4938048]
[1766588086116,0.951,2917.5,2916.4,4.23688492]
[1766588086406,0.001,2917.6,2916.4,4.23688492]
[1766588086407,0.001,2917.7,2916.5,0.09877552]
[1766588086757,0.951,2917.6,2916.3,0.09877552]
[1766588086961,0.951,2917.6,2916.4,4.236867]
[1766588087256,0.951,2917.6,2916.5,0.03428767]
[1766588087453,0.951,2917.6,2916.5,0.42711564]
[1766588087870,3.42747812,2917.6,2916.5,0.42711564]
[1766588088070,0.001,2917.7,2916.5,3.46296099]
[1766588088869,0.001,2917.7,2916.5,0.03428767]
[1766588089072,0.951,2917.6,2916.4,0.808]
[1766588089295,0.951,2917.6,2916.5,3.46302406]
[1766588089498,0.951,2917.6,2916.1,0.09877552]
[1766588089705,0.951,2917.6,2916.3,3.52770368]
[1766588090200,0.951,2917.5,2916.3,3.52770368]
[1766588090604,0.951,2917.5,2916.4,0.03428884]
[1766588090901,0.951,2917.5,2916.0,0.03429355]
[1766588091099,0.951,2917.3,2915.8,0.09877552]
[1766588091267,0.951,2917.3,2915.0,0.2]
[1766588091466,0.951,2917.3,2915.3,0.09877552]
[1766588091867,0.951,2917.3,2915.3,3.43017299]
[1766588092094,0.951,2917.0,2915.4,4.61535483]
[1766588092321,0.951,2917.0,2915.4,8.04741588]
[1766588092603,0.951,2917.0,2915.4,8.01311527]
[1766588092776,0.951,2917.0,2915.5,0.13307495]
[1766588093818,0.951,2916.9,2915.6,0.808]
[1766588093970,0.951,2916.7,2915.7,0.03429708]
[1766588094296,0.951,2916.6,2915.7,0.03429708]
[1766588094875,0.951,2916.6,2915.4,0.002]
[1766588095397,0.951,2916.4,2914.5,0.09877552]
[1766588095573,0.951,2916.2,2914.6,0.84231002]
[1766588095774,0.951,2916.2,2914.6,4.27325987]
[1766588095984,0.951,2916.2,2914.7,3.4308652]
[1766588096201,0.951,2916.0,2914.8,0.03430767]
[1766588096929,0.951,2916.0,2914.8,3.46506487]
[1766588097104,0.951,2915.9,2914.9,0.34650649]
[1766588097324,0.951,2915.9,2915.0,0.03430531]
[1766588097485,0.951,2915.9,2914.7,3.46517981]
[1766588097815,0.951,2915.9,2914.3,0.09877552]
[1766588098016,0.951,2915.9,2914.4,0.808]
[1766588098193,0.951,2915.7,2914.5,0.0343112]
[1766588098388,0.951,2915.7,2914.6,0.42735066]
[1766588098583,0.951,2915.7,2914.7,0.03430884]
[1766588099181,0.951,2916.4,2914.7,0.13308436]
[1766588099515,0.951,2916.3,2914.7,0.13308436]
[1766588099711,0.951,2916.3,2914.9,0.59877552]
[1766588099911,4.23671823,2916.6,2914.9,0.59877552]
[1766588099912,4.23670767,2916.6,2915.0,0.84230531]
[1766588100222,4.89857806,2916.5,2915.1,3.43041405]
[1766588100417,0.951,2917.1,2915.2,0.03430296]
[1766588100711,0.951,2916.9,2915.2,0.03430296]
[1766588100921,0.951,2916.9,2914.9,4.02934521]
[1766588101083,0.951,2916.9,2915.3,0.808]
[1766588101283,0.951,2916.9,2915.4,0.03430061]
[1766588101509,0.9094,2916.7,2915.4,0.03430061]
[1766588101706,1.12355729,2916.8,2915.4,0.03430061]
[1766588101707,0.9094,2916.5,2915.4,0.03430061]
[1766588102328,0.9094,2916.3,2915.0,0.09877552]
[1766588102614,0.9094,2916.3,2915.1,0.808]
[1766588102785,0.9094,2916.3,2915.2,0.03430296]
[1766588103418,0.43382849,2916.3,2914.8,0.002]
[1766588103718,0.9094,2916.2,2914.9,0.808]
[1766588104018,0.9094,2916.2,2915.1,3.43036311]
[1766588104225,0.9094,2916.2,2915.2,3.46451312]
[1766588104392,0.9094,2916.2,2915.3,0.808]
[1766588104592,0.9094,2916.2,2915.4,0.03430061]
[1766588105015,0.9094,2916.2,2915.3,0.808]
[1766588105289,0.9094,2916.1,2914.3,0.09877552]
[1766588105488,0.9094,2916.1,2914.8,0.81]
[1766588105712,0.9094,2916.1,2914.9,0.03430649]
[1766588106311,0.9094,2915.9,2914.9,0.03430649]
[1766588106728,0.9094,2915.8,2913.9,3.43182436]
[1766588106886,0.9094,2915.8,2914.1,3.43158692]
[1766588107091,0.9094,2915.8,2914.2,3.46772481]
[1766588107343,0.9094,2915.8,2914.2,0.03631473]
[1766588107620,0.9094,2915.8,2914.2,3.4677506]
[1766588107813,0.9094,2915.6,2914.3,0.68993256]
[1766588108011,0.9094,2915.6,2914.4,0.03431237]
[1766588108347,3.4298403,2915.6,2914.5,0.808]
[1766588108495,0.9094,2915.5,2914.6,0.03431002]
[1766588109807,0.9094,2916.3,2914.6,0.03431002]
[1766588110033,0.9094,2916.1,2914.7,0.7704485]
[1766588110324,0.9094,2915.9,2914.8,0.03430767]
[1766588110523,0.9094,2915.9,2914.7,0.7704485]
[1766588110698,0.9094,2915.9,2914.7,4.20127149]
[1766588110901,0.9094,2915.9,2914.7,0.7704485]
[1766588111231,0.9094,2915.9,2914.8,0.808]
[1766588111399,0.9094,2915.9,2914.9,0.03430649]
[1766588112048,0.808,2916.4,2914.9,0.03430649]
[1766588112049,0.9094,2916.6,2914.9,0.13308201]
[1766588112245,0.9094,2916.6,2915.4,0.09877552]
[1766588112447,0.9094,2917.1,2915.6,0.09877552]
[1766588112743,0.9094,2917.1,2915.7,1.1574876]
[1766588113115,0.9094,2917.1,2915.7,0.03429708]
[1766588113528,0.9094,2917.1,2915.8,0.809]
[1766588113836,0.9094,2917.1,2915.9,0.03429472]
[1766588114225,0.9094,2917.1,2915.8,0.809]
[1766588114526,0.9094,2917.1,2915.9,0.03429472]
[1766588114723,0.9094,2917.0,2915.8,0.809]
[1766588114909,0.9094,2916.8,2915.8,0.809]
[1766588115119,0.9094,2916.8,2915.9,0.03429472]
[1766588115341,0.9094,2916.8,2915.8,0.0342959]
[1766588115510,0.9094,2916.7,2915.7,0.03429708]
[1766588116435,0.9094,2916.5,2914.6,3.72977191]
[1766588116937,0.9094,2916.5,2915.1,0.5]
[1766588117304,0.9094,2916.5,2915.2,0.03430296]
[1766588118023,0.9094,2916.5,2915.2,0.84230296]
[1766588118202,0.9094,2916.3,2915.2,0.84230296]
[1766588118402,0.9094,2916.2,2915.2,0.84230296]
[1766588118735,0.9094,2916.2,2915.2,0.03430296]
[1766588118943,0.9094,2916.2,2915.2,0.84230296]
[1766588119714,0.9094,2916.2,2915.2,4.27258956]
[1766588119912,3.42857394,2916.7,2915.2,4.27258956]
[1766588119913,0.9094,2916.7,2915.3,0.47725896]
[1766588120099,0.9094,2916.7,2915.4,0.03430061]
[1766588120512,3.42864137,2916.7,2915.4,0.03430061]
[1766588120723,0.9094,2916.6,2915.4,3.46433468]
[1766588120935,0.9094,2916.6,2915.5,0.73717603]
[1766588121109,0.9094,2916.6,2915.6,0.03429825]
[1766588122136,0.9094,2916.6,2915.7,0.03429708]
[1766588122365,0.9094,2916.6,2915.8,0.8422959]
[1766588122653,0.001,2916.9,2915.8,4.23756576]
[1766588122799,0.001,2916.9,2915.9,0.4580513]
[1766588123000,0.001,2916.9,2916.0,0.03429355]
[1766588123224,0.9094,2917.5,2916.0,0.03429355]
[1766588123442,0.9094,2917.4,2915.9,0.5225321]
[1766588123642,0.9094,2917.4,2916.0,0.03429355]
[1766588124843,4.33719423,2917.4,2916.0,3.46357748]
[1766588125006,0.9094,2917.3,2916.1,0.39861096]
[1766588125206,0.9094,2917.3,2916.2,0.0342912]
[1766588125406,0.9094,2917.3,2916.3,0.809]
[1766588125706,0.9094,2917.3,2916.4,0.03428884]
[1766588126853,0.9094,2917.3,2916.5,0.809]
[1766588127375,0.9094,2917.3,2916.2,0.0342912]
[1766588127376,0.9094,2917.2,2916.2,0.0342912]
[1766588127552,0.9094,2917.2,2916.2,0.809]
[1766588127719,0.001,2916.6,2916.4,0.5]
[1766588128049,0.9104,2916.6,2916.0,0.809]
[1766588128248,0.9094,2917.2,2916.1,0.03429237]
[1766588128423,0.81,2917.6,2916.5,3.4287211]
[1766588128621,0.81,2917.6,2916.6,0.3771586]
[1766588128622,0.9094,2917.5,2916.6,0.3771586]
[1766588128852,0.9094,2917.4,2916.6,0.03428649]
[1766588129457,0.9094,2917.4,2916.4,0.809]
[1766588129746,0.9094,2917.4,2916.5,0.03428767]
[1766588130716,0.9094,2917.3,2916.5,0.03428767]
[1766588131024,0.001,2917.6,2916.5,0.03428767]
[1766588131224,0.001,2917.6,2916.5,3.46305502]
[1766588131440,0.001,2917.6,2916.6,0.4272055]
[1766588131615,0.9508,2917.6,2916.7,0.03428532]
[1766588133347,0.9498,2917.5,2916.8,0.03428414]
[1766588133551,0.9498,2917.5,2916.5,0.809]
[1766588133763,0.9498,2917.5,2916.6,0.03428649]
[1766588133934,0.9498,2917.3,2916.6,0.03428649]
[1766588134543,0.9498,2917.3,2915.3,0.57603448]
[1766588134872,0.9498,2917.0,2915.6,4.23878677]
[1766588135069,0.9498,2916.9,2915.7,0.43375623]
[1766588136053,0.9498,2916.9,2915.8,0.808]
[1766588136259,0.9498,2916.9,2915.9,0.03429472]
[1766588137741,3.4283133,2916.9,2915.9,0.03429472]
[1766588137941,0.9498,2916.8,2915.9,0.03429472]
[1766588138285,0.9498,2916.8,2915.8,0.808]
[1766588138479,0.9498,2916.8,2915.3,0.09877552]
[1766588138637,0.9498,2916.8,2915.4,4.27232666]
[1766588138841,0.9498,2916.8,2915.4,0.84230061]
[1766588139060,0.9498,2916.8,2915.5,0.5]
[1766588139254,0.9498,2916.8,2915.6,0.03429825]
[1766588139466,0.9498,2916.6,2915.6,0.03429825]
[1766588139784,0.9498,2916.5,2915.6,0.03429825]
[1766588140081,0.9498,2916.5,2915.7,0.03429708]
[1766588140248,0.9498,2916.5,2915.6,0.03429825]
[1766588141634,0.9498,2916.4,2915.6,0.03429825]
[1766588142274,0.9498,2916.3,2914.8,0.002]
[1766588142564,0.9498,2916.3,2914.9,0.808]
[1766588142779,0.9498,2916.3,2915.0,0.03430531]
[1766588143782,0.9498,2916.1,2915.0,0.03430531]
[1766588144272,0.9498,2916.1,2915.1,0.03430414]
[1766588144273,0.9099,2916.0,2915.1,0.03430414]
[1766588144477,0.9099,2915.9,2914.8,0.002]
[1766588144649,0.9099,2915.9,2914.8,0.03630767]
[1766588144851,0.9099,2915.9,2914.8,3.46701369]
[1766588145086,0.9099,2915.9,2914.8,3.46700933]
[1766588145391,0.9099,2915.9,2915.0,3.43051763]
[1766588145539,0.9099,2915.9,2915.1,0.03430414]
[1766588146075,0.9099,2915.9,2914.8,3.46702178]
[1766588146389,0.9099,2915.8,2914.8,0.03630767]
[1766588146679,0.9099,2915.8,2914.8,0.002]
[1766588146868,0.9099,2915.6,2914.8,0.002]
[1766588147673,0.9099,2915.6,2914.3,0.03431355]
[1766588147872,0.9099,2915.4,2914.2,0.002]
[1766588148077,6.8598868,2915.5,2914.2,0.002]
[1766588148078,0.9099,2915.2,2914.2,0.002]
[1766588149791,0.9099,2915.2,2914.2,0.03631473]
[1766588149972,0.9099,2915.6,2914.4,0.5]
[1766588150173,0.9099,2915.6,2914.5,0.0343112]
[1766588151072,0.9099,2915.5,2914.5,0.0343112]
[1766588153672,3.42998621,2915.5,2914.5,0.0343112]
[1766588153899,0.9099,2915.4,2914.4,0.5]
[1766588154086,11.09995863,2915.5,2914.2,0.002]
[1766588154087,0.9099,2915.2,2914.2,0.002]
[1766588154394,0.9099,2915.2,2914.2,0.03631473]
[1766588154395,0.9099,2915.1,2914.2,0.03631473]
[1766588154892,0.9099,2915.1,2914.5,0.002]
[1766588155985,3.43053173,2915.0,2914.5,0.002]
[1766588156167,0.9099,2914.9,2914.2,0.002]
[1766588156971,0.9099,2914.9,2914.2,0.03631473]
[1766588157195,0.9099,2914.9,2914.2,0.38331488]
[1766588158080,0.9099,2915.4,2914.2,3.8147334]
[1766588158288,0.9099,2915.4,2914.4,0.5]
[1766588158510,0.9099,2915.4,2914.5,0.0343112]
[1766588159402,0.9099,2915.3,2914.5,0.0343112]
[1766588160700,0.9099,2915.2,2914.4,0.5]
[1766588160901,0.9099,2915.0,2914.1,0.002]
[1766588161203,0.81,2915.1,2914.1,0.002]
[1766588161204,0.9099,2914.8,2914.1,0.002]
[1766588161514,0.9782,2916.0,2914.2,3.43139503]
[1766588161712,0.9782,2915.8,2914.3,0.84231355]
[1766588161896,0.9782,2915.8,2914.3,0.03431355]
[1766588162098,0.9782,2915.6,2914.3,0.03431355]
[1766588162815,0.9782,2915.4,2914.3,0.03431355]
[1766588163806,0.9782,2915.3,2914.1,0.002]
[1766588164203,0.9782,2915.3,2913.6,0.002]
[1766588164383,0.9782,2915.1,2914.5,0.002]
[1766588164584,0.9782,2914.9,2913.6,0.002]
[1766588164803,0.9782,2914.7,2913.6,0.002]
[1766588165007,0.9782,2914.5,2913.6,0.002]
[1766588165205,0.9782,2914.3,2913.6,0.002]
[1766588167312,0.9782,2914.2,2913.6,0.002]
[1766588167682,0.9782,2914.2,2913.3,0.002]
[1766588168933,0.9782,2914.1,2913.3,0.002]
[1766588169080,0.9782,2914.1,2913.0,0.002]
[1766588169287,7.67412472,2914.2,2913.0,0.002]
[1766588169288,0.9782,2913.9,2913.0,0.002]
[1766588170411,0.9782,2913.7,2912.4,0.002]
[1766588170908,0.9782,2913.5,2912.4,0.002]
[1766588171110,0.9782,2913.3,2912.4,0.002]
[1766588173414,0.9782,2913.3,2912.4,0.03633594]
[1766588173997,0.9782,2913.3,2912.4,0.002]
[1766588174222,0.9782,2913.3,2912.4,0.03633594]
[1766588174808,0.9782,2913.7,2912.4,0.03633594]
[1766588175020,0.9782,2913.7,2912.4,0.80753068]
[1766588175219,4.41038012,2913.6,2912.4,0.77319474]
[1766588175606,0.9782,2913.5,2912.4,0.77319474]
[1766588176004,0.9782,2913.5,2912.4,1.58119474]
[1766588176203,0.9782,2913.5,2912.5,0.50148374]
[1766588176407,0.9782,2913.5,2912.4,0.81]
[1766588176408,0.9782,2913.4,2912.4,0.002]
[1766588177138,6.8650671,2913.3,2912.4,0.002]
[1766588177339,0.9782,2913.2,2912.4,0.002]
[1766588177507,0.9782,2913.0,2912.4,0.002]
[1766588179213,0.9782,2912.9,2912.4,0.002]
[1766588179412,0.9782,2912.7,2912.4,0.002]
[1766588179643,1.7902,2913.1,2912.4,0.002]
[1766588179840,5.22296921,2913.1,2912.4,0.002]
[1766588180045,0.9782,2913.0,2912.4,0.002]
[1766588180625,0.9782,2913.0,2912.1,0.002]
[1766588180827,1.50049692,2912.9,2912.1,0.002]
[1766588181542,0.9782,2913.2,2912.1,0.002]
[1766588181747,0.9782,2913.2,2912.1,0.03633948]
[1766588182111,0.9782,2913.1,2912.1,0.03633948]
[1766588182316,0.9782,2913.1,2912.1,0.002]
[1766588182516,0.9782,2912.9,2912.1,0.002]
[1766588183318,0.9782,2912.9,2912.1,3.47026931]
[1766588184151,0.9782,2913.4,2912.1,3.43592983]
[1766588184448,0.9782,2913.9,2912.2,0.0343383]
[1766588184653,1.15722,2913.8,2912.3,1.06815354]
[1766588184948,1.15722,2913.8,2912.3,1.87615354]
[1766588185149,0.9782,2913.8,2912.3,1.87615354]
[1766588185337,0.9792,2914.2,2912.5,10.30042917]
[1766588185538,0.9792,2914.2,2912.7,19.145695]
[1766588185743,0.001,2914.2,2912.8,0.03433122]
[1766588185937,0.001,2914.2,2912.9,0.808]
[1766588186142,0.001,2914.2,2913.0,0.03432887]
[1766588186343,0.9782,2914.6,2913.0,0.03432887]
[1766588186544,1.15722,2914.6,2913.0,0.03432887]
[1766588187053,0.9782,2914.6,2913.0,0.03432887]
[1766588187224,0.9782,2915.2,2913.1,0.09877552]
[1766588187424,0.812,2915.3,2913.1,0.09877552]
[1766588187425,4.40861405,2915.1,2913.3,6.8650671]
[1766588187746,0.9782,2915.0,2913.4,0.03432415]
[1766588188051,0.9782,2914.9,2913.5,1.49793913]
[1766588188252,0.9782,2914.9,2913.6,0.0343218]
[1766588188627,0.9782,2914.9,2913.7,0.808]
[1766588188824,0.9782,2914.9,2913.8,0.03431944]
[1766588189219,0.9782,2914.8,2913.9,0.808]